bitfinex/quotes_BTCUSD_20250114
["timestamp","ask_amount","ask_price","bid_price","bid_amount"]
[1736842296185,0.209454,95486.0,95454.0,0.209524]
[1736842296342,0.209454,95486.0,95462.0,0.00604]
[1736842296564,0.209466,95481.0,95462.0,0.00604]
[1736842296926,0.209459,95484.0,95475.0,0.00114614]
[1736842298209,0.209459,95484.0,95475.0,0.00014614]
[1736842298740,0.209459,95484.0,95475.0,0.00114614]
[1736842298968,0.209454,95486.0,95475.0,0.00014614]
[1736842299162,0.209473,95478.0,95475.0,0.00014614]
[1736842299340,0.003,95484.0,95475.0,0.00014614]
[1736842299555,0.1,95490.0,95475.0,0.00014614]
[1736842299760,0.003,95484.0,95475.0,0.00014614]
[1736842300089,0.2,95497.0,95476.0,0.005738]
[1736842300307,0.289117,95503.0,95476.0,0.005738]
[1736842300308,0.1797,95503.0,95477.0,0.10980384]
[1736842300538,0.1797,95503.0,95483.0,0.20946]
[1736842300743,0.1,95503.0,95487.0,0.209452]
[1736842301166,0.1,95504.0,95488.0,1.5]
[1736842301576,0.00075995,95505.0,95488.0,1.5]
[1736842301753,0.00075995,95505.0,95489.0,0.209448]
[1736842302208,0.003,95503.0,95498.0,0.209426]
[1736842302356,0.003,95503.0,95499.0,1.5]
[1736842302550,0.00075995,95505.0,95500.0,0.209424]
[1736842302812,0.00375995,95505.0,95500.0,0.209424]
[1736842302970,0.00075995,95505.0,95500.0,0.209424]
[1736842303174,0.00075995,95505.0,95496.0,0.209432]
[1736842303519,0.003,95503.0,95499.0,0.209426]
[1736842304579,0.00075995,95505.0,95504.0,0.07106093]
[1736842304708,0.00075995,95505.0,95504.0,0.10980384]
[1736842304912,0.00375995,95505.0,95504.0,0.31921884]
[1736842305304,0.00075995,95505.0,95504.0,0.31921884]
[1736842305917,0.00075995,95505.0,95504.0,0.10980384]
[1736842306236,0.00075995,95505.0,95504.0,0.11380384]
[1736842306843,0.00075995,95505.0,95504.0,0.11480384]
[1736842307285,0.00075995,95505.0,95504.0,0.11904063]
[1736842307683,0.00075995,95505.0,95504.0,0.00923679]
[1736842308865,0.00075995,95505.0,95504.0,0.0110241]
[1736842312127,0.00075995,95505.0,95504.0,0.00578731]
[1736842312745,0.00075995,95505.0,95504.0,0.01144037]
[1736842313137,0.00075995,95505.0,95504.0,0.01244037]
[1736842313506,0.00075995,95505.0,95504.0,0.00678731]
[1736842313853,0.00075995,95505.0,95504.0,0.00578731]
[1736842314350,0.00075995,95505.0,95504.0,0.00178731]
[1736842314726,0.00075995,95505.0,95504.0,0.00378731]
[1736842314847,0.00075995,95505.0,95504.0,0.00178731]
[1736842315303,0.00075995,95505.0,95504.0,0.00478731]
[1736842317554,0.00075995,95505.0,95504.0,0.00178731]
[1736842318060,0.00075995,95505.0,95504.0,0.00278731]
[1736842319999,0.1,95537.0,95505.0,0.023]
[1736842320205,0.21951976,95557.0,95517.0,0.42068984]
[1736842320407,0.01448812,95518.0,95517.0,0.50093444]
[1736842320585,7e-05,95573.0,95518.0,0.173]
[1736842320767,0.2332842,95565.0,95525.0,0.34217284]
[1736842320967,0.2332842,95565.0,95525.0,0.37451744]
[1736842320968,0.209291,95561.0,95525.0,0.37451744]
[1736842321171,0.2332842,95565.0,95525.0,0.37451744]
[1736842321172,0.02364656,95526.0,95525.0,0.50151744]
[1736842321397,0.02364656,95526.0,95525.0,2.00151744]
[1736842321770,0.02364656,95526.0,95525.0,2.02451744]
[1736842321983,0.02364656,95526.0,95525.0,2.03351744]
[1736842322423,0.02364656,95526.0,95525.0,2.03651744]
[1736842322626,0.02364656,95526.0,95525.0,2.04619514]
[1736842322830,0.02364656,95526.0,95525.0,2.05633626]
[1736842323825,0.02364656,95526.0,95525.0,2.06052701]
[1736842325681,0.02364656,95526.0,95525.0,2.02818241]
[1736842326609,0.02364656,95526.0,95525.0,2.00518241]
[1736842326788,0.02364656,95526.0,95525.0,0.51122241]
[1736842327890,0.02364656,95526.0,95525.0,0.53585627]
[1736842328500,0.02364656,95526.0,95525.0,2.03585627]
[1736842328702,0.02364656,95526.0,95525.0,2.01285627]
[1736842331026,0.02364656,95526.0,95525.0,2.00271515]
[1736842331542,0.02449756,95526.0,95525.0,2.00271515]
[1736842332523,0.02449756,95526.0,95525.0,1.63730615]
[1736842332738,0.02449756,95526.0,95525.0,1.64334615]
[1736842333784,0.02449756,95526.0,95525.0,1.63730615]
[1736842333982,0.02449756,95526.0,95525.0,1.64334615]
[1736842335412,0.02449756,95526.0,95525.0,1.63730615]
[1736842335791,0.02449756,95526.0,95525.0,1.63362845]
[1736842336394,0.02449756,95526.0,95525.0,1.62835556]
[1736842336863,0.02449756,95526.0,95525.0,1.62935556]
[1736842337338,0.02449756,95526.0,95525.0,1.62035556]
[1736842337548,0.02449756,95526.0,95525.0,1.62535556]
[1736842337745,0.02449756,95526.0,95525.0,1.62035556]
[1736842338263,0.02449756,95526.0,95525.0,1.62335556]
[1736842338475,0.02449756,95526.0,95525.0,1.62435556]
[1736842340492,0.02449756,95526.0,95525.0,1.83372456]
[1736842340842,0.02449756,95526.0,95525.0,1.82972456]
[1736842341110,0.02449756,95526.0,95525.0,1.82872456]
[1736842341264,0.02449756,95526.0,95525.0,1.83172456]
[1736842341467,0.02449756,95526.0,95525.0,1.82672456]
[1736842341667,0.02449756,95526.0,95525.0,1.83416076]
[1736842341879,0.02449756,95526.0,95525.0,1.8317086]
[1736842342281,0.02449756,95526.0,95525.0,1.83658104]
[1736842343156,0.02449756,95526.0,95525.0,1.83058104]
[1736842343336,0.02449756,95526.0,95525.0,1.83658104]
[1736842344133,0.02449756,95526.0,95525.0,1.83237234]
[1736842344282,0.02449756,95526.0,95525.0,1.62300334]
[1736842344488,0.02449756,95526.0,95525.0,1.83837234]
[1736842345546,0.02449756,95526.0,95525.0,1.62300334]
[1736842345771,0.02449756,95526.0,95525.0,1.52147239]
[1736842345927,0.02449756,95526.0,95525.0,1.51547239]
[1736842346128,0.02449756,95526.0,95525.0,1.52147239]
[1736842346529,0.02449756,95526.0,95525.0,0.01547239]
[1736842346731,0.02149756,95526.0,95525.0,0.02147239]
[1736842347060,0.02149756,95526.0,95525.0,0.0057913]
[1736842347258,0.02149756,95526.0,95525.0,0.0047913]
[1736842347640,0.02149756,95526.0,95525.0,0.0017913]
[1736842347840,0.02149756,95526.0,95525.0,0.01244613]
[1736842348247,0.02149756,95526.0,95525.0,0.00725538]
[1736842348449,0.02149756,95526.0,95525.0,0.0027913]
[1736842348908,0.02149756,95526.0,95525.0,1.5027913]
[1736842349107,0.02149756,95526.0,95525.0,0.00698205]
[1736842349108,0.10349756,95526.0,95525.0,0.00698205]
[1736842349299,0.10349756,95526.0,95525.0,0.00575231]
[1736842349539,0.02149756,95526.0,95525.0,0.0027913]
[1736842350221,0.02149756,95526.0,95525.0,0.0017913]
[1736842350675,0.02449756,95526.0,95525.0,0.0017913]
[1736842350853,0.02149756,95526.0,95525.0,0.0017913]
[1736842351188,0.02149756,95526.0,95525.0,0.00478938]
[1736842351399,0.02149756,95526.0,95525.0,0.0017913]
[1736842351805,0.02149756,95526.0,95525.0,0.00478938]
[1736842352075,0.02149756,95526.0,95525.0,0.01449531]
[1736842353031,0.02149756,95526.0,95525.0,0.01645531]
[1736842353466,0.02149756,95526.0,95525.0,0.01745531]
[1736842354820,0.02149756,95526.0,95525.0,0.02164606]
[1736842355566,0.02149756,95526.0,95525.0,1.52164606]
[1736842359046,0.02149756,95526.0,95525.0,0.02164606]
[1736842359448,0.02149756,95526.0,95525.0,1.52164606]
[1736842361317,0.02149756,95526.0,95525.0,1.52764606]
[1736842361770,0.02149756,95526.0,95525.0,1.52164606]
[1736842361978,8.26357924,95559.0,95554.0,0.41861]
[1736842362173,8.26357924,95559.0,95558.0,0.14346164]
[1736842362405,8.26357924,95559.0,95558.0,0.24346164]
[1736842362406,4.36098884,95559.0,95558.0,0.24346164]
[1736842362606,0.0004,95569.0,95564.0,0.1]
[1736842362863,0.00052721,95609.0,95585.0,0.1]
[1736842362864,0.23017855,95586.0,95585.0,0.1]
[1736842363070,0.23017855,95586.0,95585.0,0.50269864]
[1736842363269,0.23017855,95586.0,95585.0,0.87466464]
[1736842363631,0.00052721,95609.0,95591.0,0.3428818]
[1736842363805,0.00027301,95592.0,95591.0,1.01982464]
[1736842364035,0.00711083,95613.0,95610.0,0.209183]
[1736842364212,8.3e-07,95613.0,95612.0,0.47963964]
[1736842364416,8.3e-07,95613.0,95612.0,0.57963964]
[1736842364617,0.00190853,95620.0,95619.0,0.2198208]
[1736842364818,0.00190853,95620.0,95619.0,0.10980384]
[1736842365473,0.00190853,95620.0,95619.0,0.48067028]
[1736842365669,0.00190853,95620.0,95619.0,2.00242484]
[1736842365880,0.00190853,95620.0,95619.0,2.28014203]
[1736842366082,0.00190853,95620.0,95619.0,2.10086513]
[1736842366198,0.00190853,95620.0,95619.0,0.60690513]
[1736842366396,0.00190853,95620.0,95619.0,0.12002494]
[1736842366601,0.00190853,95620.0,95619.0,0.32918794]
[1736842366857,0.00190853,95620.0,95619.0,0.12002494]
[1736842367064,0.00190853,95620.0,95619.0,0.12098494]
[1736842367263,0.00190853,95620.0,95619.0,0.0113809]
[1736842367470,0.00190853,95620.0,95619.0,0.12850749]
[1736842367687,0.0006132,95620.0,95619.0,0.27850717]
[1736842367894,0.0006132,95620.0,95619.0,0.28350164]
[1736842368094,0.0006132,95620.0,95619.0,0.26680384]
[1736842368236,0.0006132,95620.0,95619.0,0.007]
[1736842368442,0.0764132,95620.0,95619.0,0.009]
[1736842368891,0.0764132,95620.0,95619.0,0.007]
[1736842369096,0.1764132,95620.0,95619.0,0.009]
[1736842369973,0.1764132,95620.0,95619.0,0.002]
[1736842370187,0.2657554,95620.0,95619.0,0.002]
[1736842370391,0.37555924,95620.0,95619.0,0.009]
[1736842370812,0.37055924,95620.0,95619.0,0.007]
[1736842371258,0.37055924,95620.0,95588.0,0.15]
[1736842371259,0.209219,95594.0,95588.0,0.15]
[1736842371440,0.33572668,95598.0,95578.0,0.27708898]
[1736842371592,0.12651668,95590.0,95579.0,0.10980384]
[1736842371792,0.418458,95589.0,95578.0,0.27723476]
[1736842372027,0.12651668,95590.0,95578.0,0.00014578]
[1736842372028,0.20924,95584.0,95578.0,0.00014578]
[1736842372403,0.12651668,95590.0,95578.0,0.00014578]
[1736842373187,0.209242,95583.0,95578.0,0.00014578]
[1736842373714,0.209242,95583.0,95579.0,0.002]
[1736842373915,0.39876942,95588.0,95579.0,0.002]
[1736842374043,0.18953842,95588.0,95579.0,0.002]
[1736842374248,0.18953842,95588.0,95578.0,0.20939778]
[1736842374660,0.18953842,95588.0,95578.0,0.00114578]
[1736842374861,0.209237,95586.0,95578.0,0.00114578]
[1736842375076,0.209249,95580.0,95578.0,0.00014578]
[1736842375446,0.209238,95585.0,95578.0,0.00014578]
[1736842376462,0.209233,95587.0,95578.0,0.00014578]
[1736842376965,0.209243,95583.0,95578.0,0.00014578]
[1736842378498,0.209245,95582.0,95578.0,0.00014578]
[1736842378730,0.209245,95582.0,95578.0,0.0019354]
[1736842380176,0.209245,95582.0,95578.0,0.0029354]
[1736842380487,0.209245,95582.0,95578.0,0.0019354]
[1736842380696,0.209245,95582.0,95578.0,0.0029354]
[1736842380975,0.209233,95587.0,95578.0,0.0029354]
[1736842381170,0.0757,95589.0,95578.0,0.0019354]
[1736842381374,0.0757,95589.0,95579.0,0.20925]
[1736842381579,0.0757,95589.0,95578.0,0.0029354]
[1736842381779,0.209231,95588.0,95578.0,0.0029354]
[1736842383184,0.0893422,95600.0,95579.0,0.10980384]
[1736842383324,0.20922,95593.0,95580.0,0.209248]
[1736842383524,0.20922,95593.0,95581.0,0.10980384]
[1736842383761,0.0893422,95601.0,95582.0,1.709244]
[1736842384126,0.209216,95595.0,95583.0,0.10980384]
[1736842384282,0.0801,95599.0,95583.0,0.10980384]
[1736842384487,0.0801,95599.0,95583.0,0.12046164]
[1736842384670,0.0801,95599.0,95590.0,0.209224]
[1736842384877,0.0801,95599.0,95590.0,0.31902784]
[1736842385617,0.209188,95608.0,95594.0,0.209216]
[1736842385814,0.209198,95604.0,95591.0,0.10980384]
[1736842386477,0.209198,95604.0,95592.0,1.5]
[1736842386478,0.418396,95604.0,95592.0,1.5]
[1736842386658,0.209198,95604.0,95592.0,1.5]
[1736842387212,0.0813,95612.0,95596.0,0.0106578]
[1736842387436,0.209163,95620.0,95604.0,0.209195]
[1736842387645,0.209163,95620.0,95607.0,0.209187]
[1736842387846,0.418326,95620.0,95607.0,0.209187]
[1736842388045,0.209155,95623.0,95611.0,0.209179]
[1736842388243,0.209159,95621.0,95604.0,1.60980384]
[1736842388406,0.209159,95621.0,95609.0,0.209185]
[1736842388919,0.00014575,95621.0,95618.0,0.209164]
[1736842389109,0.00014575,95621.0,95619.0,0.10980384]
[1736842389535,0.00014575,95621.0,95611.0,0.20918]
[1736842389737,0.209161,95620.0,95608.0,0.209187]
[1736842390023,0.209161,95620.0,95608.0,0.418374]
[1736842390631,0.00014575,95621.0,95619.0,0.209163]
[1736842390837,0.00014575,95621.0,95620.0,0.209161]
[1736842390838,1.984e-05,95621.0,95620.0,0.209161]
[1736842391057,0.00199868,95620.0,95615.0,0.209171]
[1736842392097,0.00285108,95620.0,95615.0,0.209171]
[1736842393183,0.00285108,95620.0,95610.0,0.209183]
[1736842393184,0.00285108,95620.0,95619.0,0.209163]
[1736842393379,0.00285108,95620.0,95619.0,0.31896684]
[1736842393641,0.00285108,95620.0,95619.0,0.209163]
[1736842393873,0.00285108,95620.0,95617.0,0.21881833]
[1736842394076,0.00285108,95620.0,95617.0,0.00965233]
[1736842394254,0.00285108,95620.0,95619.0,0.001]
[1736842396117,0.00285108,95620.0,95619.0,0.11080384]
[1736842396909,0.00285108,95620.0,95619.0,0.10980384]
[1736842397119,0.00285108,95620.0,95619.0,0.11280384]
[1736842397296,0.00285108,95620.0,95619.0,0.12245617]
[1736842398237,0.00285108,95620.0,95619.0,0.12345617]
[1736842399249,0.00285108,95620.0,95619.0,0.28411397]
[1736842400018,0.00285108,95620.0,95619.0,1.78411397]
[1736842400855,0.00285108,95620.0,95619.0,1.80711397]
[1736842401059,0.00285108,95620.0,95619.0,2.1047658]
[1736842401455,0.00285108,95620.0,95619.0,2.11288729]
[1736842401820,0.00285108,95620.0,95619.0,2.11761462]
[1736842402076,8e-08,95620.0,95619.0,2.21761462]
[1736842402295,8e-08,95620.0,95619.0,1.85214462]
[1736842402834,0.005,95630.0,95619.0,1.85214462]
[1736842402835,8.4e-07,95622.0,95621.0,0.2606578]
[1736842403016,8.4e-07,95622.0,95621.0,0.30264347]
[1736842403017,0.00048628,95622.0,95621.0,0.30264347]
[1736842403224,0.00048628,95622.0,95621.0,0.30872347]
[1736842403424,0.00048628,95622.0,95621.0,0.33172347]
[1736842403626,0.00048628,95622.0,95621.0,1.8413758]
[1736842404017,0.00048628,95622.0,95621.0,1.84302313]
[1736842404191,0.00048628,95622.0,95621.0,1.82302313]
[1736842404390,0.00148628,95630.0,95629.0,0.209141]
[1736842404592,0.00148628,95630.0,95629.0,0.47436904]
[1736842404839,0.00148628,95630.0,95629.0,0.87891833]
[1736842405044,0.00148628,95630.0,95629.0,0.47944357]
[1736842405254,0.00148628,95630.0,95629.0,0.11422257]
[1736842405668,0.00148628,95630.0,95629.0,0.00965233]
[1736842406492,0.00148628,95630.0,95629.0,0.003]
[1736842406875,0.00148628,95630.0,95629.0,0.012]
[1736842407080,0.00148628,95630.0,95628.0,0.27739297]
[1736842407244,0.00148628,95630.0,95629.0,0.001]
[1736842407881,0.00148628,95630.0,95629.0,0.005]
[1736842408118,0.00148628,95630.0,95629.0,0.38596321]
[1736842408352,0.00148628,95630.0,95629.0,0.10857024]
[1736842409038,0.00148628,95630.0,95629.0,0.004]
[1736842409448,0.00148628,95630.0,95629.0,0.005]
[1736842409789,0.00148628,95630.0,95629.0,0.49192164]
[1736842410017,0.00148628,95630.0,95629.0,0.004]
[1736842410236,0.00148628,95630.0,95629.0,0.10457024]
[1736842410458,0.00148628,95630.0,95629.0,0.10657024]
[1736842410683,0.00148628,95630.0,95628.0,0.209143]
[1736842410898,0.00148628,95630.0,95628.0,0.31371324]
[1736842411126,0.00148628,95630.0,95629.0,0.003]
[1736842411865,0.00148628,95630.0,95629.0,0.001]
[1736842412135,0.00148628,95630.0,95629.0,1.501]
[1736842412621,0.00148628,95630.0,95629.0,1.5]
[1736842412870,0.07658628,95630.0,95626.0,0.27778064]
[1736842413131,0.07658628,95630.0,95611.0,0.215259]
[1736842413132,0.00148628,95630.0,95629.0,0.31371124]
[1736842413390,0.00148628,95630.0,95629.0,1.5]
[1736842413868,0.00148628,95630.0,95629.0,1.501]
[1736842414030,0.00148628,95630.0,95629.0,1.5]
[1736842414929,0.00148628,95630.0,95623.0,0.209154]
[1736842415092,0.418282,95629.0,95619.0,0.00178962]
[1736842415288,0.00148628,95630.0,95619.0,0.21095162]
[1736842415519,0.00148628,95630.0,95620.0,0.23182383]
[1736842415693,0.00148628,95630.0,95620.0,0.23685803]
[1736842416132,0.00148628,95630.0,95629.0,1.709141]
[1736842416354,0.00148628,95630.0,95629.0,1.81371124]
[1736842416491,0.00148628,95630.0,95629.0,1.60457024]
[1736842416901,0.00148628,95630.0,95629.0,1.60635965]
[1736842417302,0.00148628,95630.0,95629.0,1.76701745]
[1736842419574,0.00148628,95630.0,95629.0,0.26701745]
[1736842419778,0.00148628,95630.0,95629.0,0.27669981]
[1736842419983,0.00148628,95630.0,95629.0,1.77869981]
[1736842420802,0.00148628,95630.0,95629.0,1.78369981]
[1736842421099,0.00148628,95630.0,95629.0,1.79144594]
[1736842422204,0.00148628,95630.0,95629.0,1.78078814]
[1736842422754,0.00148628,95630.0,95629.0,1.63078814]
[1736842423156,0.00148628,95630.0,95629.0,0.0262179]
[1736842423557,0.00148628,95630.0,95629.0,0.0212179]
[1736842423767,0.00148628,95630.0,95629.0,1.5212179]
[1736842423982,0.00148628,95630.0,95629.0,1.51353554]
[1736842424198,0.00148628,95630.0,95629.0,1.50953554]
[1736842424402,0.00148628,95630.0,95629.0,1.50378941]
[1736842424865,0.00148628,95630.0,95629.0,1.50178941]
[1736842425036,0.00148628,95630.0,95629.0,1.50278941]
[1736842425998,0.00148628,95630.0,95629.0,1.50378941]
[1736842426199,0.00148628,95630.0,95629.0,0.00378941]
[1736842426503,0.00148628,95630.0,95629.0,0.00278941]
[1736842428284,0.00148628,95630.0,95629.0,0.00178941]
[1736842430243,0.28115652,95630.0,95629.0,0.00178941]
[1736842430902,0.28200862,95630.0,95629.0,0.00178941]
[1736842431326,0.07743838,95630.0,95629.0,0.00178941]
[1736842434461,0.00233838,95630.0,95629.0,0.21093041]
[1736842434677,0.00233838,95630.0,95629.0,0.31550065]
[1736842435566,0.00233838,95630.0,95629.0,1.82518825]
[1736842436296,0.00233838,95630.0,95629.0,1.82618825]
[1736842436914,0.00233838,95630.0,95629.0,1.98984605]
[1736842438194,0.00233838,95630.0,95629.0,1.99759436]
[1736842440178,0.00233838,95630.0,95629.0,1.89914412]
[1736842440383,0.00233838,95630.0,95629.0,2.00371436]
[1736842441044,0.00233838,95630.0,95629.0,1.99596605]
[1736842441828,0.00233838,95630.0,95629.0,2.27374669]
[1736842444123,0.00233838,95630.0,95629.0,2.28805812]
[1736842445791,0.00233838,95630.0,95629.0,2.42442558]
[1736842445939,3.8e-07,95630.0,95629.0,2.94396358]
[1736842446159,3.8e-07,95630.0,95629.0,2.47292558]
[1736842446365,3.8e-07,95630.0,95629.0,2.19514494]
[1736842446589,3.8e-07,95630.0,95629.0,2.19414494]
[1736842446977,3.8e-07,95630.0,95629.0,2.19814494]
[1736842447197,5.5e-07,95636.0,95634.0,0.1]
[1736842447396,5.5e-07,95636.0,95635.0,1.56216372]
[1736842447593,5.5e-07,95636.0,95635.0,0.5066235]
[1736842447797,5.5e-07,95636.0,95635.0,2.0296235]
[1736842447975,5.5e-07,95636.0,95635.0,2.0470535]
[1736842448523,5.5e-07,95636.0,95635.0,2.0531735]
[1736842449072,5.5e-07,95636.0,95635.0,2.1342735]
[1736842449428,5.5e-07,95636.0,95635.0,2.1281535]
[1736842449583,5.5e-07,95636.0,95635.0,2.1342735]
[1736842450009,5.5e-07,95636.0,95635.0,2.2402735]
[1736842451021,5.5e-07,95636.0,95635.0,2.2341535]
[1736842451230,5.5e-07,95636.0,95635.0,2.2492735]
[1736842451945,5.5e-07,95636.0,95635.0,2.37043858]
[1736842452740,5.5e-07,95636.0,95635.0,2.26431858]
[1736842453138,5.5e-07,95636.0,95635.0,2.27043858]
[1736842453316,5.5e-07,95636.0,95635.0,2.00678604]
[1736842453519,5.5e-07,95636.0,95635.0,2.01290604]
[1736842453723,0.00085265,95636.0,95635.0,2.01290604]
[1736842454942,6.5e-07,95636.0,95635.0,2.16023804]
[1736842455141,6.5e-07,95636.0,95635.0,2.03590604]
[1736842455341,6.5e-07,95636.0,95635.0,2.03582604]
[1736842455842,6.5e-07,95636.0,95635.0,2.06795709]
[1736842456138,6.5e-07,95636.0,95635.0,2.02978604]
[1736842456403,6.5e-07,95636.0,95635.0,2.03582604]
[1736842459069,0.0004,95649.0,95648.0,0.3697578]
[1736842459204,0.00062415,95650.0,95649.0,0.1836578]
[1736842459205,1.5e-07,95650.0,95649.0,0.1836578]
[1736842459410,7.8e-07,95650.0,95649.0,1.2029322]
[1736842459634,7.8e-07,95650.0,95649.0,0.37092804]
[1736842459847,7.8e-07,95650.0,95649.0,1.91802804]
[1736842460006,7.8e-07,95650.0,95649.0,1.93844213]
[1736842460389,7.8e-07,95650.0,95649.0,1.95587213]
[1736842460658,7.8e-07,95650.0,95649.0,2.36606675]
[1736842460865,7.8e-07,95650.0,95649.0,2.46606675]
[1736842461062,7.8e-07,95650.0,95649.0,2.57210675]
[1736842461294,7.8e-07,95650.0,95649.0,2.60418868]
[1736842461503,7.8e-07,95650.0,95649.0,2.61618868]
[1736842461660,9.1e-07,95665.0,95664.0,0.4754228]
[1736842461869,9.1e-07,95665.0,95664.0,0.62709304]
[1736842462367,9.1e-07,95670.0,95669.0,0.3697118]
[1736842462567,9.1e-07,95670.0,95669.0,0.47428204]
[1736842462769,9.1e-07,95670.0,95669.0,0.49728204]
[1736842463000,3.578e-05,95671.0,95670.0,0.3635858]
[1736842463296,3.578e-05,95671.0,95670.0,1.79426804]
[1736842463727,3.578e-05,95671.0,95670.0,1.78822804]
[1736842463929,3.578e-05,95671.0,95670.0,1.79426804]
[1736842464312,3.578e-05,95671.0,95670.0,1.81353661]
[1736842464520,3.578e-05,95671.0,95670.0,1.82153661]
[1736842464720,3.578e-05,95671.0,95670.0,1.83096661]
[1736842464921,3.578e-05,95671.0,95670.0,1.80192661]
[1736842465119,3.578e-05,95671.0,95670.0,1.81092661]
[1736842465275,3.578e-05,95671.0,95670.0,1.80630881]
[1736842465490,3.578e-05,95671.0,95670.0,1.82096661]
[1736842466546,3.578e-05,95671.0,95670.0,1.81492661]
[1736842466927,3.578e-05,95671.0,95670.0,1.81196661]
[1736842467083,3.578e-05,95671.0,95670.0,1.81996661]
[1736842467532,3.578e-05,95671.0,95670.0,1.81392661]
[1736842467721,0.0004892,95688.0,95680.0,0.0106578]
[1736842467897,0.00063483,95688.0,95681.0,0.10457024]
[1736842468421,0.00063483,95688.0,95682.0,1.50604]
[1736842468995,0.00063483,95688.0,95682.0,1.5]
[1736842469202,0.00063483,95688.0,95683.0,0.00604]
[1736842469442,0.209014,95687.0,95677.0,0.15]
[1736842469635,0.209014,95687.0,95681.0,0.00604]
[1736842470322,0.209014,95687.0,95681.0,0.00804]
[1736842470593,0.209014,95687.0,95679.0,0.00604]
[1736842470794,0.209014,95687.0,95680.0,1.5]
[1736842471008,0.209014,95687.0,95681.0,0.002]
[1736842471209,0.00063483,95688.0,95667.0,0.0106578]
[1736842471509,0.209027,95682.0,95681.0,0.001]
[1736842472236,0.290627,95682.0,95681.0,0.001]
[1736842472454,0.0816,95682.0,95681.0,0.001]
[1736842472889,0.290625,95682.0,95681.0,0.002]
[1736842473574,0.0816,95682.0,95681.0,0.001]
[1736842474082,0.0816,95682.0,95681.0,0.004]
[1736842474543,0.0816,95682.0,95681.0,0.01004]
[1736842475220,0.0816,95682.0,95678.0,0.169072]
[1736842475411,0.0816,95682.0,95680.0,0.00604]
[1736842475875,0.0809,95682.0,95680.0,0.00604]
[1736842476084,0.0809,95682.0,95681.0,1.5]
[1736842476780,0.0809,95682.0,95681.0,1.50178836]
[1736842477558,0.0809,95682.0,95681.0,1.50478836]
[1736842478156,0.0809,95682.0,95681.0,1.50578836]
[1736842478380,0.0809,95682.0,95681.0,1.7603586]
[1736842479051,0.0809,95682.0,95681.0,1.65578836]
[1736842479250,0.0809,95682.0,95681.0,1.67149222]
[1736842479470,0.0809,95682.0,95681.0,1.69081994]
[1736842479679,0.0809,95682.0,95681.0,1.68477994]
[1736842479923,0.0809,95682.0,95681.0,1.69081994]
[1736842480532,0.0809,95682.0,95681.0,1.68477994]
[1736842480734,0.0809,95682.0,95681.0,1.69081994]
[1736842481263,0.0809,95682.0,95681.0,1.52149222]
[1736842482242,0.0809,95682.0,95681.0,1.51545222]
[1736842483272,0.0809,95682.0,95681.0,1.50578836]
[1736842483475,0.0809,95682.0,95681.0,0.00578836]
[1736842483812,0.0809,95682.0,95681.0,0.00278836]
[1736842483813,0.1809,95682.0,95681.0,0.00278836]
[1736842484139,0.0819,95682.0,95681.0,0.00178836]
[1736842484398,0.0809,95682.0,95681.0,0.00178836]
[1736842484600,0.0819,95682.0,95681.0,0.00178836]
[1736842484813,0.0849,95682.0,95681.0,0.00178836]
[1736842485440,0.1849,95682.0,95681.0,0.00178836]
[1736842485649,0.1839,95682.0,95681.0,0.00178836]
[1736842485846,0.1849,95682.0,95681.0,0.00178836]
[1736842488194,0.0849,95682.0,95681.0,0.00178836]
[1736842488924,0.1849,95682.0,95681.0,0.00178836]
[1736842494567,0.28947024,95682.0,95681.0,0.00178836]
[1736842494970,0.37881244,95682.0,95681.0,0.00178836]
[1736842495660,0.42421244,95682.0,95681.0,0.00178836]
[1736842495894,0.44497089,95682.0,95681.0,0.00178836]
[1736842496088,0.49973,95664.0,95660.0,0.00968452]
[1736842496297,0.49973,95664.0,95658.0,0.00612]
[1736842496298,0.0816,95664.0,95658.0,0.00612]
[1736842496454,0.209075,95659.0,95658.0,0.00612]
[1736842496664,0.209075,95659.0,95652.0,0.0106578]
[1736842497027,0.209071,95661.0,95653.0,1.50612]
[1736842497237,0.1,95662.0,95653.0,1.50612]
[1736842497438,0.209073,95660.0,95658.0,0.001]
[1736842497861,0.209073,95660.0,95654.0,0.00968679]
[1736842498406,0.209081,95657.0,95654.0,0.00968679]
[1736842499469,0.518162,95657.0,95654.0,0.00968679]
[1736842499690,0.518162,95657.0,95654.0,0.01168679]
[1736842500061,0.518162,95657.0,95654.0,0.002]
[1736842500266,0.209084,95655.0,95654.0,0.002]
[1736842500465,0.309084,95655.0,95654.0,0.002]
[1736842500629,0.0833,95655.0,95654.0,0.002]
[1736842501018,0.0468,95671.0,95651.0,0.209093]
[1736842501019,0.0833,95664.0,95651.0,0.209093]
[1736842501387,0.292367,95664.0,95652.0,0.00612]
[1736842501554,0.292367,95664.0,95661.0,1.5]
[1736842502006,0.501434,95664.0,95661.0,1.5]
[1736842502247,0.0833,95664.0,95661.0,1.5]
[1736842502697,0.0833,95673.0,95661.0,1.5]
[1736842503166,0.00014561,95680.0,95662.0,0.10457024]
[1736842503338,0.00014561,95680.0,95673.0,0.209044]
[1736842504217,0.00014561,95680.0,95675.0,0.209041]
[1736842504397,0.00014561,95680.0,95676.0,0.00612]
[1736842504603,0.00114561,95680.0,95676.0,0.00612]
[1736842504813,0.00314561,95680.0,95676.0,0.00612]
[1736842505046,0.00314561,95680.0,95677.0,0.00612]
[1736842505245,0.00214561,95680.0,95677.0,0.00612]
[1736842505453,0.00314561,95680.0,95677.0,0.00612]
[1736842505896,0.00314561,95680.0,95679.0,0.1606578]
[1736842506089,0.00114561,95680.0,95679.0,0.26522804]
[1736842506457,0.00314561,95680.0,95679.0,0.26522804]
[1736842506706,0.00114561,95680.0,95679.0,0.26522804]
[1736842507014,0.00014561,95680.0,95679.0,0.27296364]
[1736842507213,0.00114561,95680.0,95679.0,0.27896364]
[1736842507649,0.00014561,95680.0,95679.0,0.37716364]
[1736842507857,0.00014561,95680.0,95679.0,0.35416364]
[1736842508058,0.00014561,95680.0,95679.0,0.63936608]
[1736842508262,0.00014561,95680.0,95679.0,2.13936608]
[1736842508430,0.00014561,95680.0,95679.0,1.86228364]
[1736842508866,0.00014561,95680.0,95679.0,1.8944802]
[1736842509256,0.00014561,95680.0,95679.0,1.8192802]
[1736842509483,0.00014561,95680.0,95679.0,1.78708364]
[1736842510296,0.00014561,95680.0,95679.0,1.77642584]
[1736842510498,0.00014561,95680.0,95679.0,1.78708364]
[1736842510736,0.00014561,95680.0,95679.0,1.78096364]
[1736842510941,0.00014561,95680.0,95679.0,0.0157356]
[1736842511376,0.00014561,95680.0,95679.0,0.0218556]
[1736842511549,0.00014561,95680.0,95679.0,0.0157356]
[1736842511773,0.00014561,95680.0,95679.0,0.0218556]
[1736842512370,0.20917561,95680.0,95679.0,0.01212]